bitfinex/quotes_BTCUSD_20251025
["timestamp","ask_amount","ask_price","bid_price","bid_amount"]
[1761361625750,0.48669757,111200.0,111190.0,0.15872]
[1761361626502,0.48669757,111200.0,111190.0,0.15972]
[1761361626697,0.51371458,111200.0,111190.0,0.15972]
[1761361630894,0.51371458,111200.0,111190.0,0.002]
[1761361632160,0.53314835,111200.0,111190.0,0.002]
[1761361633406,0.51371458,111200.0,111190.0,0.002]
[1761361636098,0.85371458,111200.0,111190.0,0.002]
[1761361636325,0.87313602,111200.0,111190.0,0.002]
[1761361636745,0.87313602,111200.0,111190.0,0.001]
[1761361637512,0.17988846,111180.0,111170.0,0.49399855]
[1761361637727,0.48757727,111190.0,111170.0,0.49399855]
[1761361637931,0.17988846,111180.0,111170.0,0.49399855]
[1761361638314,0.17988846,111180.0,111170.0,0.27871855]
[1761361638674,0.17988846,111180.0,111170.0,0.27971855]
[1761361638882,0.17988846,111180.0,111170.0,0.28271855]
[1761361639263,0.51493701,111190.0,111170.0,0.28271855]
[1761361640501,0.51493701,111190.0,111170.0,0.28171855]
[1761361640675,0.20724614,111190.0,111170.0,0.27971855]
[1761361640874,0.51493701,111190.0,111170.0,0.27971855]
[1761361642029,0.20724614,111190.0,111170.0,0.28071855]
[1761361642777,0.51502585,111190.0,111170.0,0.28071855]
[1761361643432,0.20724614,111190.0,111170.0,0.28071855]
[1761361643587,0.51502585,111190.0,111170.0,0.28071855]
[1761361647747,0.51502585,111190.0,111180.0,0.17988846]
[1761361647748,0.20724614,111190.0,111180.0,0.17988846]
[1761361647961,0.51502585,111190.0,111180.0,0.17988846]
[1761361648984,0.20724614,111190.0,111180.0,0.18088846]
[1761361649117,0.51502585,111190.0,111180.0,0.18088846]
[1761361650216,0.51502585,111190.0,111180.0,0.18188846]
[1761361650639,0.20724614,111190.0,111180.0,0.18188846]
[1761361650846,0.51502585,111190.0,111180.0,0.18188846]
[1761361655758,0.20724614,111190.0,111180.0,0.18188846]
[1761361656002,0.51502585,111190.0,111180.0,0.18188846]
[1761361660086,0.51502585,111190.0,111180.0,0.002]
[1761361660298,0.51502585,111190.0,111180.0,0.18188846]
[1761361660899,0.51502585,111190.0,111180.0,0.002]
[1761361661107,0.51502585,111190.0,111180.0,0.18188846]
[1761361662993,0.20724614,111190.0,111180.0,0.18188846]
[1761361663222,0.51501174,111190.0,111180.0,0.18188846]
[1761361664023,0.02735974,111190.0,111180.0,0.18188846]
[1761361664226,0.33513945,111190.0,111180.0,0.18188846]
[1761361664874,0.02735974,111190.0,111180.0,0.18188846]
[1761361665049,0.33513945,111190.0,111180.0,0.18188846]
[1761361665244,0.02735974,111190.0,111180.0,0.18188846]
[1761361665476,0.33513945,111190.0,111180.0,0.18188846]
[1761361666198,0.02735974,111190.0,111180.0,0.18188846]
[1761361668590,0.02491501,111190.0,111180.0,0.18188846]
[1761361668798,0.02487004,111190.0,111180.0,0.18188846]
[1761361671594,0.20474233,111190.0,111180.0,0.18188846]
[1761361673153,0.20474233,111190.0,111180.0,0.002]
[1761361673359,0.51252204,111190.0,111180.0,0.002]
[1761361675638,0.20474233,111190.0,111180.0,0.002]
[1761361675848,0.51252204,111190.0,111180.0,0.002]
[1761361678344,0.487652,111190.0,111180.0,0.002]
[1761361678748,0.17987229,111190.0,111180.0,0.002]
[1761361678951,0.50566111,111190.0,111180.0,0.002]
[1761361679154,0.487652,111190.0,111180.0,0.002]
[1761361681433,0.17987229,111190.0,111180.0,0.002]
[1761361681634,0.50566111,111190.0,111180.0,0.002]
[1761361681846,0.487652,111190.0,111180.0,0.002]
[1761361683113,0.17987229,111190.0,111180.0,0.18188846]
[1761361683318,0.487652,111190.0,111180.0,0.18188846]
[1761361686590,0.487652,111190.0,111180.0,0.18181142]
[1761361687657,0.17987229,111190.0,111180.0,0.18181142]
[1761361688040,0.17987229,111190.0,111180.0,0.00192296]
[1761361688606,0.1978814,111190.0,111180.0,0.00192296]
[1761361689433,0.50566111,111190.0,111180.0,0.00192296]
[1761361689645,0.487652,111190.0,111180.0,0.00192296]
[1761361693474,0.17987229,111190.0,111180.0,0.00192296]
[1761361693685,0.50566111,111190.0,111180.0,0.00192296]
[1761361693885,0.487652,111190.0,111180.0,0.00192296]
[1761361695067,1.13543171,111190.0,111180.0,0.0018609]
[1761361695271,1.15486511,111190.0,111180.0,0.0018609]
[1761361695488,1.24468412,111190.0,111180.0,0.0018609]
[1761361695702,1.26897471,111190.0,111180.0,0.0018609]
[1761361696141,1.29564321,111190.0,111180.0,0.0008609]
[1761361696352,1.29564321,111190.0,111180.0,0.0018609]
[1761361697184,1.29564321,111190.0,111180.0,0.0008609]
[1761361697708,0.17993702,111150.0,111140.0,0.89792887]
[1761361697918,0.17993702,111150.0,111140.0,0.53026817]
[1761361698548,0.17993702,111150.0,111140.0,0.4637145]
[1761361698987,0.17993702,111150.0,111140.0,0.46376359]
[1761361699195,0.17993702,111150.0,111140.0,0.46776359]
[1761361699400,0.17993702,111150.0,111140.0,0.46976359]
[1761361700460,0.48771252,111160.0,111140.0,0.7775433]
[1761361701323,0.48771252,111160.0,111140.0,0.7735433]
[1761361701740,0.48771252,111160.0,111140.0,0.7755433]
[1761361702298,0.17993281,111160.0,111150.0,0.17993702]
[1761361703137,0.49670144,111170.0,111150.0,0.17993702]
[1761361703433,0.17992083,111160.0,111150.0,0.17993702]
[1761361703636,0.17992083,111160.0,111150.0,0.18093702]
[1761361703987,0.17992083,111160.0,111150.0,0.18293702]
[1761361704194,0.17992083,111160.0,111150.0,0.18193702]
[1761361704334,0.17992083,111160.0,111150.0,0.18293702]
[1761361705583,0.17992083,111160.0,111150.0,0.18193702]
[1761361705992,0.17992083,111160.0,111150.0,0.18293702]
[1761361718458,0.18892173,111170.0,111150.0,0.18293702]
[1761361719393,0.18892173,111170.0,111150.0,0.18193702]
[1761361719729,0.18892173,111170.0,111150.0,0.18293702]
[1761361720166,0.18892173,111170.0,111150.0,0.18093702]
[1761361720624,0.18892173,111170.0,111150.0,0.18193702]
[1761361729069,0.18892173,111170.0,111160.0,0.17992083]
[1761361730486,0.18892173,111170.0,111160.0,0.18092083]
[1761361730725,0.18892173,111170.0,111160.0,0.18192083]
[1761361733816,0.1799148,111180.0,111160.0,0.18192083]
[1761361734066,0.17990465,111170.0,111160.0,0.002]
[1761361734335,0.17990465,111170.0,111160.0,0.18192083]
[1761361734824,0.17990465,111170.0,111160.0,0.18092083]
[1761361735011,0.17990465,111170.0,111160.0,0.18192083]
[1761361736295,0.17990465,111170.0,111160.0,0.18092083]
[1761361736495,0.17990465,111170.0,111160.0,0.18192083]
[1761361737117,0.1799148,111180.0,111160.0,0.18192083]
[1761361737336,0.19792391,111180.0,111160.0,0.18192083]
[1761361737552,0.19792391,111180.0,111160.0,0.33968083]
[1761361737971,0.19792391,111180.0,111160.0,0.33868083]
[1761361738178,0.19792391,111180.0,111160.0,0.33768083]
[1761361739503,0.17990465,111170.0,111160.0,0.33868083]
[1761361740437,0.17990465,111170.0,111160.0,0.33768083]
[1761361740885,0.17990465,111170.0,111160.0,0.33968083]
[1761361746891,0.17990465,111170.0,111160.0,0.15976]
[1761361748037,0.17990465,111170.0,111160.0,0.33968083]
[1761361750506,0.17990465,111170.0,111160.0,0.15976]
[1761361750734,0.17990465,111170.0,111160.0,0.33968083]
[1761361753093,0.17990465,111170.0,111160.0,0.15976]
[1761361755212,0.17990465,111170.0,111160.0,0.33968083]
[1761361774310,0.48775086,111170.0,111160.0,0.33968083]
[1761361775820,0.17990465,111170.0,111160.0,0.33968083]
[1761361776151,0.17990465,111170.0,111160.0,0.15976]
[1761361776354,0.48775086,111170.0,111160.0,0.15976]
[1761361777979,0.48775086,111170.0,111160.0,0.33968083]
[1761361783666,0.17990465,111170.0,111160.0,0.33968083]
[1761361784254,0.48775086,111170.0,111160.0,0.33968083]
[1761361785019,0.48775086,111170.0,111160.0,0.33964083]
[1761361786593,0.17990465,111170.0,111160.0,0.33964083]
[1761361799370,0.48776101,111180.0,111160.0,0.33964083]
[1761361799576,0.02702523,111170.0,111160.0,0.33964083]
[1761361800146,0.02702523,111170.0,111160.0,0.64748704]
[1761361800327,0.02702523,111170.0,111160.0,0.33864083]
[1761361800527,0.02702523,111170.0,111160.0,0.33764083]
[1761361801068,0.02702523,111170.0,111160.0,0.33864083]
[1761361801344,0.20692988,111170.0,111160.0,0.33864083]
[1761361802264,0.20692988,111170.0,111160.0,0.33964083]
[1761361802465,0.20692988,111170.0,111160.0,0.33864083]
[1761361802895,0.20692988,111170.0,111160.0,0.33964083]
[1761361805392,0.02702523,111170.0,111160.0,0.64748704]
[1761361806007,0.20692988,111170.0,111160.0,0.33964083]
[1761361806421,0.17990465,111170.0,111160.0,0.33964083]
[1761361806809,0.17990465,111170.0,111160.0,0.36666606]
[1761361810252,0.17990465,111170.0,111160.0,0.18674523]
[1761361810470,0.48775086,111170.0,111160.0,0.18674523]
[1761361810883,0.17990465,111170.0,111160.0,0.18674523]
[1761361813352,0.50575997,111170.0,111160.0,0.15972]
[1761361813532,0.48775086,111170.0,111160.0,0.15972]
[1761361813884,0.51477726,111170.0,111160.0,0.15972]
[1761361815319,0.51477726,111170.0,111160.0,0.002]
[1761361818694,0.51477726,111170.0,111160.0,0.18192083]
[1761361823698,0.20693105,111170.0,111160.0,0.18192083]
[1761361823894,0.51477726,111170.0,111160.0,0.18192083]
[1761361825396,0.51477726,111170.0,111160.0,0.002]
[1761361828850,0.20693105,111170.0,111160.0,0.002]
[1761361839524,0.51480068,111170.0,111160.0,0.002]
[1761361847451,0.17992083,111160.0,111150.0,0.0270264]
[1761361847655,3.17993702,111150.0,111140.0,4.909e-05]
[1761361847859,3.97852456,111150.0,111140.0,4.909e-05]
[1761361848069,4.04403896,111150.0,111140.0,4.909e-05]
[1761361848265,4.06292504,111150.0,111140.0,4.909e-05]
[1761361848474,3.97310603,111150.0,111140.0,4.909e-05]
[1761361849090,3.98202313,111150.0,111140.0,4.909e-05]
[1761361850277,3.95776366,111150.0,111140.0,4.909e-05]
[1761361851870,3.9577026,111150.0,111140.0,4.909e-05]
[1761361852207,3.94088902,111150.0,111140.0,4.909e-05]
[1761361852604,4.03070803,111150.0,111140.0,4.909e-05]
[1761361852967,3.94088902,111150.0,111140.0,4.909e-05]
[1761361858892,3.93197192,111150.0,111140.0,4.909e-05]
[1761361859114,3.91253236,111150.0,111140.0,4.909e-05]
[1761361859285,3.88549529,111150.0,111140.0,4.909e-05]
[1761361859717,0.26975603,111150.0,111140.0,4.909e-05]
[1761361860097,0.57762566,111150.0,111140.0,4.909e-05]
[1761361868232,0.88549529,111150.0,111140.0,4.909e-05]
[1761361868648,0.90484613,111150.0,111140.0,4.909e-05]
[1761361871099,0.93151463,111150.0,111140.0,4.909e-05]
[1761361873195,0.94833367,111150.0,111140.0,4.909e-05]
[1761361875350,0.97259314,111150.0,111140.0,4.909e-05]
[1761361875600,0.97262219,111150.0,111140.0,4.909e-05]
[1761361877439,1.00503265,111150.0,111140.0,4.909e-05]
[1761361878285,0.97836415,111150.0,111140.0,4.909e-05]
[1761361878826,0.95412006,111150.0,111140.0,4.909e-05]
[1761361881703,0.97841444,111150.0,111140.0,4.909e-05]
[1761361885925,1.00508294,111150.0,111140.0,4.909e-05]
[1761361886956,0.98078856,111150.0,111140.0,4.909e-05]
[1761361888786,0.98129552,111150.0,111140.0,4.909e-05]
[1761361889318,1.00559709,111150.0,111140.0,4.909e-05]
[1761361898871,0.51995321,111140.0,111130.0,0.00192445]
[1761361899137,1.17241374,111140.0,111130.0,0.00241577]
[1761361900190,1.17341374,111140.0,111130.0,0.00241577]
[1761361900791,1.17341374,111140.0,111130.0,0.00341577]
[1761361934021,0.55716752,111140.0,111130.0,0.00341577]
[1761361934225,0.86529063,111140.0,111130.0,0.00341577]
[1761361934455,1.17341374,111140.0,111130.0,0.00341577]
[1761361935367,1.17346839,111140.0,111130.0,0.00341577]
[1761361948768,0.8653049,111140.0,111130.0,0.00341577]
[1761361950307,0.84848586,111140.0,111130.0,0.00341577]
[1761361953234,0.86536559,111140.0,111130.0,0.00341577]
[1761361962112,0.84848586,111140.0,111130.0,0.00341577]
[1761361964111,0.54040313,111140.0,111130.0,0.00341577]
[1761361964309,0.84848586,111140.0,111130.0,0.00341577]
[1761361968474,0.84843187,111140.0,111130.0,0.00341577]
[1761361968707,0.84780201,111140.0,111130.0,0.00341577]
[1761361979854,0.84780201,111140.0,111130.0,0.0304507]
[1761361986308,0.84780201,111140.0,111130.0,0.00341577]
[1761361986729,0.87483694,111140.0,111130.0,0.00341577]
[1761362010836,1.18304463,111140.0,111130.0,0.00341577]
[1761362029051,1.1560097,111140.0,111130.0,0.00341577]
[1761362031324,0.84786449,111140.0,111130.0,0.00341577]
[1761362033785,0.36044992,111140.0,111130.0,0.18338517]
[1761362034001,0.001,111140.0,111130.0,0.59934633]
[1761362034211,0.001,111140.0,111130.0,0.58134939]
[1761362034418,0.001,111140.0,111130.0,0.60837959]
[1761362035175,0.82808352,111150.0,111140.0,0.17995321]
[1761362035365,0.82808352,111150.0,111140.0,0.19794853]
[1761362035565,0.51993831,111150.0,111140.0,0.19794853]
[1761362035810,0.82808352,111150.0,111140.0,0.19794853]
[1761362035956,0.82808352,111150.0,111140.0,0.22497873]
[1761362036152,0.82808352,111150.0,111140.0,0.20698341]
[1761362036398,0.82908352,111150.0,111140.0,0.20798341]
[1761362037189,0.52093831,111150.0,111140.0,0.20798341]
[1761362037388,0.82908352,111150.0,111140.0,0.20798341]
[1761362039569,0.82908352,111150.0,111140.0,0.18095321]
[1761362045806,0.52093831,111150.0,111140.0,0.18095321]
[1761362046035,0.82908352,111150.0,111140.0,0.18095321]
[1761362054051,0.18093831,111150.0,111140.0,0.18095321]
[1761362054274,0.001,111150.0,111140.0,0.57891743]
[1761362054615,0.001,111150.0,111140.0,0.60594571]
[1761362055031,0.001,111150.0,111140.0,0.60494571]
[1761362055411,0.48807012,111160.0,111150.0,0.17993702]
[1761362055612,0.48807012,111160.0,111150.0,0.19793072]
[1761362057029,0.48807012,111160.0,111150.0,0.19893072]
[1761362057156,0.48807012,111160.0,111150.0,0.18093702]
[1761362057960,0.48907012,111160.0,111150.0,0.18093702]
[1761362061462,0.79721533,111160.0,111150.0,0.001]
[1761362072750,0.48888877,111160.0,111150.0,0.001]
[1761362080514,0.50832398,111160.0,111150.0,0.001]
[1761362085157,0.50832398,111160.0,111150.0,0.18093702]
[1761362086625,0.32839907,111160.0,111150.0,0.18093702]
[1761362091499,0.02043521,111160.0,111150.0,0.18093702]
[1761362093410,0.001,111160.0,111150.0,0.18093702]
[1761362100242,0.001,111160.0,111150.0,0.20796345]
[1761362100474,0.001,111160.0,111150.0,0.29778246]
[1761362100705,0.001,111160.0,111150.0,1.10761246]
[1761362101361,0.001,111160.0,111150.0,1.10661246]
[1761362101795,0.001,111160.0,111150.0,1.10761246]
[1761362102639,0.49681295,111200.0,111180.0,0.17987338]
[1761362102776,0.85620962,111200.0,111190.0,0.17987229]
[1761362103254,0.83681295,111200.0,111190.0,0.17987229]
[1761362103825,0.83690134,111200.0,111190.0,0.19785951]
[1761362104033,0.83690134,111200.0,111190.0,0.19885951]
[1761362104237,0.83690134,111200.0,111190.0,0.18087229]
[1761362104238,0.82890836,111200.0,111190.0,0.18087229]
[1761362104808,0.82890836,111200.0,111190.0,0.001]
[1761362106920,0.85592658,111200.0,111190.0,0.001]
[1761362108463,0.85592658,111200.0,111190.0,0.00122881]
[1761362109876,3.85592658,111200.0,111190.0,0.00122881]
[1761362110101,3.90195731,111200.0,111190.0,0.00122881]
[1761362110502,3.88259508,111200.0,111190.0,0.00122881]
[1761362111216,3.90195705,111200.0,111190.0,0.00122881]
[1761362111458,3.88259508,111200.0,111190.0,0.00122881]
[1761362112285,3.90195713,111200.0,111190.0,0.00122881]
[1761362112517,3.88259508,111200.0,111190.0,0.00122881]
[1761362112729,3.95259508,111200.0,111190.0,0.00122881]
[1761362113368,3.97195749,111200.0,111190.0,0.00122881]
[1761362118067,3.66399363,111200.0,111190.0,0.00122881]
[1761362118270,3.97195749,111200.0,111190.0,0.00122881]
[1761362118608,3.95259508,111200.0,111190.0,0.00122881]
[1761362119463,3.97196728,111200.0,111190.0,0.00122881]
[1761362120712,0.92592658,111200.0,111190.0,0.00122881]
[1761362122482,0.94530926,111200.0,111190.0,0.00122881]
[1761362126308,0.92592658,111200.0,111190.0,0.00122881]
[1761362126520,0.94532431,111200.0,111190.0,0.00122881]
[1761362126738,0.92592658,111200.0,111190.0,0.00122881]
[1761362126922,0.94532448,111200.0,111190.0,0.00122881]
[1761362134816,1.25293386,111200.0,111190.0,0.00122881]
[1761362143465,0.63736062,111200.0,111190.0,0.00122881]
[1761362143672,1.25293386,111200.0,111190.0,0.00122881]
[1761362159931,1.22591564,111200.0,111190.0,0.00122881]
[1761362166708,1.25293547,111200.0,111190.0,0.00122881]
[1761362173172,1.25298019,111200.0,111190.0,0.00122881]
[1761362177303,1.25302292,111200.0,111190.0,0.00122881]
[1761362190138,1.2773237,111200.0,111190.0,0.00122881]
[1761362196838,0.96954182,111200.0,111190.0,0.00122881]
[1761362201747,0.94524104,111200.0,111190.0,0.00122881]
[1761362207016,0.29740496,111200.0,111190.0,0.00122881]
[1761362207161,0.27038513,111200.0,111190.0,0.00122881]
[1761362207375,0.27038513,111200.0,111190.0,0.01921603]
[1761362208714,0.27030419,111200.0,111190.0,0.01921603]
[1761362209754,0.27030419,111200.0,111190.0,0.19908832]
[1761362209952,0.27030419,111200.0,111190.0,0.1811011]
[1761362210349,0.27030419,111200.0,111190.0,0.00122881]
[1761362210557,0.27028944,111200.0,111190.0,0.01921603]
[1761362211148,0.27028944,111200.0,111190.0,0.19908832]
[1761362211349,0.27028944,111200.0,111190.0,0.00122881]
[1761362211549,0.27028944,111200.0,111190.0,0.19908832]
[1761362211720,0.25086356,111200.0,111190.0,0.19908832]
[1761362212161,0.07100745,111200.0,111190.0,0.19908832]
[1761362212373,0.00100745,111200.0,111190.0,0.27092011]
[1761362213353,0.00100745,111200.0,111190.0,0.26992011]
[1761362213771,0.00100745,111200.0,111190.0,0.27092011]
[1761362214060,7.45e-06,111200.0,111190.0,0.27092011]
[1761362214253,7.45e-06,111200.0,111190.0,0.27192011]
[1761362214646,7.45e-06,111200.0,111190.0,0.42960011]
[1761362219078,7.45e-06,111200.0,111190.0,0.73743619]
[1761362219911,7.45e-06,111200.0,111190.0,0.42960011]
[1761362221992,7.45e-06,111200.0,111190.0,0.46578239]
[1761362223613,7.45e-06,111200.0,111190.0,0.46551122]
[1761362273337,0.30768643,111200.0,111190.0,0.46551122]
[1761362273872,7.45e-06,111200.0,111190.0,0.46551122]
[1761362280857,0.02702095,111200.0,111190.0,0.46551122]
[1761362290156,0.20687706,111200.0,111190.0,0.46551122]
[1761362291756,0.33469993,111200.0,111190.0,0.46551122]
[1761362292354,0.02702095,111200.0,111190.0,0.46551122]
[1761362305562,0.02702095,111200.0,111190.0,0.7731902]
[1761362315701,0.02702095,111200.0,111190.0,0.46551122]
[1761362346725,0.02190325,111200.0,111190.0,0.46551122]
[1761362347828,0.02190325,111200.0,111190.0,0.77319396]
[1761362348050,0.02190325,111200.0,111190.0,0.46551122]
[1761362348939,0.02190325,111200.0,111190.0,0.77319396]
[1761362349164,0.01302354,111210.0,111200.0,0.21603839]
[1761362349394,0.01302354,111210.0,111200.0,0.61354014]
[1761362350554,0.01302354,111210.0,111200.0,0.64054885]
[1761362350954,0.01302354,111210.0,111200.0,0.64154885]
[1761362351598,0.01302354,111210.0,111200.0,0.64454885]
[1761362351801,0.01302354,111210.0,111200.0,0.64054885]
[1761362351968,0.01302354,111210.0,111200.0,0.64454885]
[1761362352308,0.01302354,111210.0,111200.0,0.98654885]
[1761362359558,0.01302354,111210.0,111200.0,1.13624885]
[1761362366326,0.01302354,111210.0,111200.0,0.82856611]
[1761362366594,0.01302354,111210.0,111200.0,1.13624885]
[1761362366824,0.01302354,111210.0,111200.0,1.29384885]
[1761362371516,0.01302354,111210.0,111200.0,1.35140885]
[1761362380706,0.01302354,111210.0,111200.0,1.65875825]
[1761362389302,0.01302354,111210.0,111200.0,1.72320638]
[1761362393786,0.01302354,111210.0,111200.0,1.72316638]
[1761362403066,0.01302354,111210.0,111200.0,0.88612611]
[1761362403282,0.01302354,111210.0,111200.0,1.32419347]
[1761362403775,0.01302354,111210.0,111200.0,1.63170954]
[1761362406549,0.01293362,111210.0,111200.0,1.63170954]
[1761362442781,0.01293362,111210.0,111200.0,1.32416522]
[1761362453567,0.01293362,111210.0,111200.0,1.16660522]
[1761362453767,0.01293362,111210.0,111200.0,1.32416522]
[1761362453973,0.01293362,111210.0,111200.0,1.16660522]
[1761362454188,0.01293362,111210.0,111200.0,1.32416522]
[1761362455487,0.01293362,111210.0,111200.0,1.16660522]
[1761362455834,0.01293362,111210.0,111200.0,1.32416522]
[1761362461623,0.01293362,111210.0,111200.0,1.33729884]
[1761362464269,0.01293362,111210.0,111200.0,0.98416522]
[1761362466701,0.01293362,111210.0,111200.0,1.01117213]
[1761362467144,0.01293362,111210.0,111200.0,0.85361213]
[1761362467321,0.01293362,111210.0,111200.0,1.01117213]
[1761362467515,0.01293362,111210.0,111200.0,0.85361213]
[1761362468126,0.01293362,111210.0,111200.0,1.01117213]
[1761362470738,0.01293362,111210.0,111200.0,0.70368431]
[1761362470942,0.01293362,111210.0,111200.0,1.01117213]
[1761362480276,0.01293362,111210.0,111200.0,0.05973981]
[1761362480479,4.37275262,111210.0,111200.0,0.006]
[1761362480693,4.45841802,111210.0,111200.0,0.006]
[1761362480893,4.4347239,111210.0,111200.0,0.006]
[1761362481099,4.49953007,111210.0,111200.0,1e-08]
[1761362481318,0.17992301,111160.0,111140.0,0.34703087]
[1761362481519,0.17997212,111160.0,111150.0,0.08981901]
[1761362482167,0.20699755,111160.0,111150.0,0.08981901]
[1761362483460,0.20899755,111160.0,111150.0,0.08981901]
[1761362483641,0.20899755,111160.0,111150.0,0.09081901]
[1761362484708,0.20899755,111160.0,111150.0,0.001]
[1761362487145,0.20899755,111160.0,111150.0,0.00235614]
[1761362487960,0.51648537,111160.0,111150.0,0.00235614]
[1761362491947,0.20899755,111160.0,111150.0,0.00235614]
[1761362495343,0.02907454,111160.0,111150.0,0.18229316]
[1761362495555,0.20899537,111160.0,111150.0,0.00235614]
[1761362496143,0.20899537,111160.0,111150.0,0.18229316]
[1761362498603,0.02907454,111160.0,111150.0,0.27211217]
[1761362498961,0.02907454,111160.0,111150.0,0.73771999]
[1761362499390,0.00204911,111160.0,111150.0,0.73771999]
[1761362500009,4.911e-05,111160.0,111150.0,0.73771999]
[1761362500410,0.00104911,111160.0,111150.0,0.73771999]
[1761362500849,0.00104911,111160.0,111150.0,0.73671999]
[1761362501387,0.00104911,111160.0,111150.0,0.73771999]
[1761362501793,0.00104911,111160.0,111150.0,0.73671999]
[1761362502004,0.00104911,111160.0,111150.0,0.73771999]
[1761362504130,0.00104911,111160.0,111150.0,0.43023217]
[1761362504792,0.00104911,111160.0,111150.0,0.73806377]
[1761362510222,0.02046852,111160.0,111150.0,0.73806377]
[1761362512219,0.02046821,111160.0,111150.0,0.73806377]
[1761362514150,0.00104911,111160.0,111150.0,0.73806377]
[1761362517154,0.00104911,111160.0,111150.0,0.76508662]
[1761362517503,0.00104911,111160.0,111150.0,0.8012689]
[1761362520466,0.00104911,111160.0,111150.0,1.1091005]
[1761362520663,0.00104911,111160.0,111150.0,1.4491005]
[1761362521293,0.00104911,111160.0,111150.0,1.42207765]
[1761362521499,0.00104911,111160.0,111150.0,1.57177765]
[1761362521740,4.911e-05,111160.0,111150.0,1.57177765]
[1761362521956,4.911e-05,111160.0,111150.0,1.57377765]
[1761362522365,4.911e-05,111160.0,111150.0,1.57277765]
[1761362522576,4.911e-05,111160.0,111150.0,1.57477765]
[1761362536111,4.911e-05,111160.0,111150.0,1.89260924]
[1761362540286,4.911e-05,111160.0,111150.0,1.95723919]
[1761362542806,4.911e-05,111160.0,111150.0,1.96723918]
[1761362543024,4.911e-05,111160.0,111150.0,2.21044083]
[1761362543234,4.911e-05,111160.0,111150.0,2.01018172]
[1761362543655,4.911e-05,111160.0,111150.0,2.00818172]
[1761362543870,4.911e-05,111160.0,111150.0,2.00618172]
[1761362544074,0.01293362,111210.0,111200.0,0.17985611]
[1761362544275,0.01298275,111210.0,111200.0,0.42767512]
[1761362545132,0.01498275,111210.0,111200.0,0.42767512]
[1761362545540,0.01498275,111210.0,111200.0,0.42867512]
[1761362551414,0.01498275,111210.0,111200.0,0.73650672]
[1761362552707,0.01498275,111210.0,111200.0,0.42867512]
[1761362552925,0.01498275,111210.0,111200.0,0.73650672]
[1761362555247,0.01498275,111210.0,111200.0,1.04433832]
[1761362555462,0.01498275,111210.0,111200.0,0.73650672]
[1761362555720,0.01498275,111210.0,111200.0,1.04433832]
[1761362563082,0.01498275,111210.0,111200.0,1.10189832]
[1761362564325,0.01498275,111210.0,111200.0,1.1380806]
[1761362564737,0.01498275,111210.0,111200.0,0.8299679]
[1761362569765,0.01498275,111210.0,111200.0,0.3644174]
[1761362569948,0.01498275,111210.0,111200.0,0.5223374]
[1761362570186,0.01498275,111210.0,111200.0,0.8298879]
[1761362570863,0.01498275,111210.0,111200.0,0.5223374]
[1761362571076,0.01498275,111210.0,111200.0,0.8298879]
[1761362576581,0.01498275,111210.0,111200.0,0.27067512]
[1761362576820,0.01498275,111210.0,111200.0,0.48611512]
[1761362578215,0.01498275,111210.0,111200.0,0.32823512]
[1761362578424,0.01498275,111210.0,111200.0,0.48611512]
[1761362579655,0.01498275,111210.0,111200.0,0.32823512]
[1761362579883,0.01498275,111210.0,111200.0,0.48607512]
[1761362580541,0.01498275,111210.0,111200.0,0.32823512]
[1761362580739,0.01498275,111210.0,111200.0,0.48607512]
[1761362581044,0.01498275,111210.0,111200.0,0.32823512]
[1761362581188,0.01498275,111210.0,111200.0,0.48607512]
[1761362581387,0.01498275,111210.0,111200.0,0.32823512]
[1761362581587,0.01498275,111210.0,111200.0,0.48607512]
[1761362582419,0.01498275,111210.0,111200.0,0.32823512]
[1761362582610,0.01498275,111210.0,111200.0,0.48607512]
[1761362583662,0.01498275,111210.0,111200.0,0.32823512]
[1761362583869,0.01498275,111210.0,111200.0,0.48607512]
[1761362584043,0.01498275,111210.0,111200.0,0.32823512]
[1761362584252,0.01498275,111210.0,111200.0,0.48607512]
[1761362584634,0.03299186,111210.0,111200.0,0.48607512]
[1761362587559,0.01498275,111210.0,111200.0,0.48607512]
[1761362588808,0.01498275,111210.0,111200.0,0.32823512]
[1761362589009,0.01498275,111210.0,111200.0,0.48607512]
[1761362589666,0.03299186,111210.0,111200.0,0.48607512]
[1761362590885,0.03299186,111210.0,111200.0,0.42851512]
[1761362598369,0.0600039,111210.0,111200.0,0.42851512]
[1761362601104,0.0600039,111210.0,111200.0,0.09081901]
[1761362601318,0.57639415,111210.0,111200.0,0.001]
[1761362601535,0.55838504,111210.0,111200.0,0.001]
[1761362604480,0.25083454,111210.0,111200.0,0.001]
[1761362605347,0.55838504,111210.0,111200.0,0.001]
[1761362607461,0.25083454,111210.0,111200.0,0.001]
[1761362609171,0.25083454,111210.0,111200.0,0.18085611]
[1761362609331,0.22183473,111210.0,111200.0,0.27067512]
[1761362609530,0.22183473,111210.0,111200.0,0.09081901]
[1761362609937,0.22183473,111210.0,111200.0,0.001]
[1761362614883,0.22183473,111210.0,111200.0,0.18085611]
[1761362615113,0.22183473,111210.0,111200.0,0.001]
[1761362615325,0.22183473,111210.0,111200.0,0.18085611]
[1761362615536,0.22183473,111210.0,111200.0,0.001]
[1761362619346,1.00396524,111210.0,111200.0,0.001]
[1761362619760,0.97860752,111210.0,111200.0,0.001]
[1761362620132,0.17987229,111190.0,111180.0,0.18922183]
[1761362620336,0.1978814,111190.0,111180.0,0.18922183]
[1761362620966,0.2249013,111190.0,111180.0,0.18922183]
[1761362621166,0.20689219,111190.0,111180.0,0.18922183]
[1761362621744,0.20689219,111190.0,111180.0,0.34730183]
[1761362623728,0.20689219,111190.0,111180.0,0.15841895]
[1761362624566,0.51444269,111190.0,111180.0,0.15841895]
[1761362624778,0.20689219,111190.0,111180.0,0.33830741]
[1761362625521,0.0270199,111190.0,111180.0,0.42812642]
[1761362625937,0.20689219,111190.0,111180.0,0.42812642]
[1761362627288,0.0270199,111190.0,111180.0,0.42812642]
[1761362632714,0.20689219,111190.0,111180.0,0.24823796]
[1761362632930,0.20689219,111190.0,111180.0,0.42812642]
[1761362633415,0.20689219,111190.0,111180.0,0.15841895]
[1761362633588,0.51462486,111190.0,111180.0,0.33830741]
[1761362635555,0.20689219,111190.0,111180.0,0.33830741]
[1761362635788,0.51462486,111190.0,111180.0,0.18022741]
[1761362639642,0.20689219,111190.0,111180.0,0.18022741]
[1761362639845,0.51462486,111190.0,111180.0,0.18022741]
[1761362641601,0.0270199,111190.0,111180.0,0.27004642]
[1761362642013,0.0270199,111190.0,111180.0,0.57777909]
[1761362642217,0.0270199,111190.0,111180.0,0.27004642]
[1761362643431,0.20689219,111190.0,111180.0,0.27004642]
[1761362646501,0.17987229,111190.0,111180.0,0.27004642]
[1761362648948,0.1978814,111190.0,111180.0,0.27004642]
[1761362649162,0.50561407,111190.0,111180.0,0.27004642]
[1761362649357,0.48760496,111190.0,111180.0,0.27004642]
[1761362649717,0.48760496,111190.0,111180.0,0.00033895]
[1761362653021,0.51296268,111190.0,111180.0,0.00033895]
[1761362653785,0.52202542,111190.0,111180.0,0.00033895]
[1761362654891,0.51296268,111190.0,111180.0,0.00033895]
[1761362655835,0.52193027,111190.0,111180.0,0.00033895]